bitfinex-derivatives/quotes_ETHF0:USTF0_20250621
["timestamp","ask_amount","ask_price","bid_price","bid_amount"]
[1750547961744,3.31876484,2268.9,2268.6,21.55915907]
[1750547961940,3.31876484,2268.9,2268.8,15.67192803]
[1750547962137,3.31876484,2269.0,2268.8,15.67192803]
[1750547962338,3.31876484,2269.0,2268.9,1.3986]
[1750547962539,3.31876484,2269.0,2268.9,17.07052803]
[1750547962842,3.31876484,2269.0,2268.9,22.95775907]
[1750547963337,3.31876484,2269.3,2268.9,22.95775907]
[1750547963537,3.31876484,2269.3,2269.2,15.67192803]
[1750547963741,3.2078,2269.3,2268.7,3.2078]
[1750547963935,3.2078,2269.3,2268.2,13.013]
[1750547963936,3.40261886,2269.1,2268.4,3.2078]
[1750547964136,3.40261886,2268.9,2268.8,15.67192803]
[1750547964332,3.40261886,2269.0,2268.8,18.87972803]
[1750547964537,4.14794741,2269.2,2269.0,15.67192803]
[1750547964734,0.88132,2268.9,2268.5,3.2078]
[1750547964935,3.40385038,2268.8,2268.5,18.87972803]
[1750547965241,3.40284236,2268.6,2268.5,5.88723104]
[1750547965442,2.4582425,2268.6,2268.5,15.67192803]
[1750547965637,2.4582425,2268.6,2268.5,21.55915907]
[1750547965832,1.5768325,2268.6,2268.1,3.2078]
[1750547966137,2.4582925,2268.5,2268.4,15.67192803]
[1750547966641,2.4582925,2268.5,2267.8,3.2078]
[1750547966642,0.8816,2268.2,2267.8,3.2078]
[1750547966839,5.13876142,2268.3,2268.1,15.67192803]
[1750547967041,1.57764213,2268.2,2268.1,15.67192803]
[1750547967345,2.45921213,2268.2,2268.1,15.67192803]
[1750547967542,2.45921213,2268.2,2266.8,0.12612965]
[1750547967543,58.14144213,2268.2,2267.0,3.2078]
[1750547967838,3.40443343,2267.7,2267.3,3.2078]
[1750547968040,3.40443343,2267.7,2266.5,0.6983]
[1750547968243,4.98121433,2267.6,2267.4,15.67192803]
[1750547968442,4.98121433,2267.5,2267.3,15.67192803]
[1750547968637,4.25721142,2267.6,2267.5,15.67192803]
[1750547968842,4.25721142,2267.6,2267.0,9.09503104]
[1750547968843,1.57633354,2267.6,2267.0,9.09503104]
[1750547969145,4.97954807,2267.5,2267.3,3.2078]
[1750547969441,1.57633354,2267.4,2267.3,3.2078]
[1750547969647,6.55732845,2268.1,2268.0,15.67192803]
[1750547969944,14.93111703,2268.1,2267.4,15.67192803]
[1750547970140,4.0896,2267.7,2267.4,15.67192803]
[1750547970444,0.88186,2267.5,2266.8,53.9858]
[1750547970639,2.27732,2267.6,2267.2,15.67192803]
[1750547970834,6.53567272,2267.6,2267.2,15.67192803]
[1750547971136,4.25835272,2267.6,2267.4,15.67192803]
[1750547971537,7.46615272,2267.7,2267.1,3.2078]
[1750547971740,3.2078,2267.7,2267.4,15.67192803]
[1750547972048,4.08956,2267.7,2267.4,15.67192803]
[1750547972345,7.46615272,2267.7,2267.4,15.67192803]
[1750547972543,4.25835272,2267.6,2267.4,15.67192803]
[1750547972942,3.2078,2267.7,2267.4,15.67192803]
[1750547973142,4.08956,2267.7,2267.4,15.67192803]
[1750547973344,3.2078,2267.7,2267.4,15.67192803]
[1750547973543,3.2078,2267.7,2267.5,15.67192803]
[1750547973745,5.75884753,2267.7,2267.5,15.67192803]
[1750547973949,5.75884753,2267.7,2267.6,15.67192803]
[1750547974150,3.2078,2267.7,2267.6,15.67192803]
[1750547974341,2.55104753,2267.8,2267.6,15.67192803]
[1750547974540,5.75884753,2268.0,2267.4,3.2078]
[1750547974747,0.88173,2267.8,2267.6,15.67192803]
[1750547974943,3.2078,2267.7,2267.4,15.67192803]
[1750547975142,4.08959,2267.7,2267.4,15.67192803]
[1750547975342,3.2078,2267.7,2267.6,15.67192803]
[1750547976252,3.2078,2268.0,2267.3,3.2078]
[1750547976448,1.3457,2267.9,2267.3,3.2078]
[1750547976753,3.2078,2268.0,2267.6,15.67192803]
[1750547976953,3.2078,2268.0,2267.8,15.67192803]
[1750547977245,3.2078,2268.0,2267.1,3.2078]
[1750547977447,3.2078,2267.7,2267.5,15.67192803]
[1750547977846,3.2078,2267.7,2267.1,3.2078]
[1750547978041,3.2078,2267.4,2267.1,15.67192803]
[1750547978248,3.2078,2267.4,2266.5,12.9603]
[1750547978249,3.2078,2267.4,2266.5,3.9061]
[1750547978552,4.08982,2267.1,2266.7,15.67192803]
[1750547978748,4.08982,2267.1,2266.2,12.9531]
[1750547978749,12.262,2267.4,2267.2,15.67192803]
[1750547979052,38.4098,2267.5,2267.1,15.67192803]
[1750547979346,0.8819,2267.4,2267.0,15.67192803]
[1750547979553,38.4098,2267.5,2267.0,15.67192803]
[1750547979744,0.88194,2267.3,2267.0,15.67192803]
[1750547980046,0.88188,2267.4,2267.1,15.67192803]
[1750547980449,3.2078,2267.2,2266.5,12.262]
[1750547980650,0.88201,2267.1,2266.8,15.67192803]
[1750547981041,3.2078,2267.2,2266.4,3.2078]
[1750547981347,35.095,2267.4,2266.9,15.67192803]
[1750547981550,3.2078,2267.5,2267.2,15.67192803]
[1750547981854,3.2078,2267.5,2267.4,15.67192803]
[1750547982153,3.2078,2267.8,2267.4,15.67192803]
[1750547982353,3.2078,2267.8,2267.6,15.67192803]
[1750547983444,3.2078,2267.8,2267.5,1.408]
[1750547983651,15.4708,2267.8,2267.1,3.2078]
[1750547983841,15.4708,2267.8,2267.5,15.67192803]
[1750547984149,3.2078,2267.8,2267.6,15.67192803]
[1750547984555,3.2078,2268.1,2267.7,18.87972803]
[1750547984751,4.08954,2267.8,2267.4,1.3546]
[1750547984953,3.2078,2267.5,2266.9,12.263]
[1750547985154,3.2078,2267.9,2267.6,15.67192803]
[1750547985350,4.0895,2267.9,2267.6,15.67192803]
[1750547985657,3.2078,2267.9,2267.4,3.2078]
[1750547985845,3.2078,2267.9,2267.4,15.67192803]
[1750547986149,3.2078,2267.6,2267.0,1.3546]
[1750547986349,3.2078,2267.9,2267.5,15.67192803]
[1750547986556,3.2078,2267.9,2267.7,15.67192803]
[1750547986962,3.2078,2267.9,2267.5,3.2078]
[1750547987162,3.2078,2267.9,2267.7,15.67192803]
[1750547987456,12.264,2268.2,2267.8,15.67192803]
[1750547987658,3.2078,2268.0,2267.9,15.67192803]
[1750547987858,3.2078,2268.3,2267.9,15.67192803]
[1750547988048,13.14543,2268.6,2268.2,15.67192803]
[1750547988253,1.55147373,2268.5,2268.0,1.4171]
[1750547988453,12.264,2268.6,2268.2,15.67192803]
[1750547988660,3.2078,2268.4,2268.1,15.67192803]
[1750547988855,0.88156,2268.3,2267.7,3.2078]
[1750547989055,3.2078,2268.4,2268.2,15.67192803]
[1750547989254,3.2078,2268.4,2268.3,15.67192803]
[1750547989656,3.2078,2268.4,2267.8,3.2078]
[1750547989856,3.2078,2268.4,2268.1,15.67192803]
[1750547990351,4.08931,2268.4,2267.9,1.4171]
[1750547990549,3.2078,2268.4,2268.1,15.67192803]
[1750547990746,3.2078,2268.4,2268.3,15.67192803]
[1750547990953,4.08915,2268.8,2268.3,15.67192803]
[1750547991155,1.55183595,2268.7,2268.0,3.2078]
[1750547991354,3.2078,2268.8,2268.3,3.2078]
[1750547991558,3.2078,2269.1,2268.7,15.67192803]
[1750547991860,3.2078,2269.1,2269.0,15.67192803]
[1750547992257,3.2078,2269.1,2268.8,1.3766]
[1750547992562,3.2078,2269.1,2269.0,15.67192803]
[1750547992862,3.2078,2269.4,2269.0,15.67192803]
[1750547993157,4.08904,2269.1,2268.8,1.3766]
[1750547993358,4.08904,2269.1,2268.9,15.67192803]
[1750547993557,3.2078,2269.1,2268.2,3.2078]
[1750547993857,0.8813,2268.9,2268.6,15.67192803]
[1750547994159,3.2078,2268.8,2268.6,15.67192803]
[1750547994356,4.08916,2268.8,2268.4,1.3526]
[1750547994658,3.2078,2268.8,2268.7,15.67192803]
[1750547995652,3.2078,2269.2,2268.7,20.67192803]
[1750547995856,3.2078,2269.2,2269.1,15.67192803]
[1750547996251,3.2078,2269.2,2268.8,4.5604]
[1750547996453,3.2078,2269.2,2269.1,15.67192803]
[1750547996654,3.2078,2269.5,2269.1,15.67192803]
[1750547996854,3.2078,2269.5,2269.2,15.67192803]
[1750547997259,0.88115,2269.3,2268.6,17.2082]
[1750547997460,0.88113,2269.4,2269.0,15.67192803]
[1750547997757,2.28663,2269.4,2269.0,15.67192803]
[1750547998153,0.88114,2269.3,2269.0,15.67192803]
[1750547998465,4.08904,2269.1,2268.6,5.3142]
[1750547998660,3.2078,2268.8,2268.6,17.77832803]
[1750547998865,3.2078,2269.2,2268.7,15.67192803]
[1750547999156,3.2078,2269.2,2269.0,15.67192803]
[1750547999359,3.2078,2269.2,2269.1,15.67192803]
[1750547999752,3.2078,2269.8,2269.1,20.67192803]
[1750547999957,3.2078,2269.5,2269.4,15.67192803]
[1750548000462,3.2078,2269.8,2269.4,15.67192803]
[1750548000658,3.2078,2269.8,2269.2,1.4194]
[1750548000967,11.90856846,2269.5,2268.7,0.7215]
[1750548001262,0.88142,2268.6,2268.1,4.6272]
[1750548001450,49.03220003,2269.4,2268.2,15.67192803]
[1750548001451,3.2078,2268.5,2268.2,15.67192803]
[1750548001655,11.891,2268.4,2267.8,3.2078]
[1750548001855,3.2078,2268.0,2267.1,0.7215]
[1750548002157,8.70076846,2267.5,2267.1,17.09132803]
[1750548002365,3.2078,2267.3,2266.4,3.2078]
[1750548002554,3.2078,2266.7,2266.6,15.67192803]
[1750548002756,3.2078,2266.7,2266.6,15.76016591]
[1750548002960,17.79071846,2266.7,2266.6,0.08823788]
[1750548003260,70.72337922,2266.7,2265.3,3.2078]
[1750548003458,70.72337922,2266.7,2265.7,15.67192803]
[1750548003459,3.2078,2265.8,2265.7,15.67192803]
[1750548003762,4.0903,2265.8,2265.7,0.08827293]
[1750548003959,0.88264,2265.5,2265.0,1.3457]
[1750548004161,3.2078,2265.3,2265.1,15.67192803]
[1750548004355,3.2078,2265.3,2264.7,3.2078]
[1750548004561,3.2078,2266.3,2265.0,3.2078]
[1750548004864,3.56125434,2266.7,2264.7,10.04646846]
[1750548004865,3.2078,2266.6,2266.2,15.67192803]
[1750548005059,4.5805,2266.6,2266.2,15.67192803]
[1750548005259,4.5805,2266.6,2265.8,1.3457]
[1750548005260,3.2078,2266.3,2265.8,1.3457]
[1750548005461,3.2078,2266.3,2266.1,15.67192803]
[1750548005662,0.88235,2266.2,2266.1,15.67192803]
[1750548005866,3.2078,2266.3,2265.8,1.3457]
[1750548005867,4.09012,2266.3,2265.8,1.3457]
[1750548006063,0.88235,2266.2,2266.0,15.67192803]
[1750548006269,11.895,2266.2,2265.2,3.2078]
[1750548006572,3.2078,2266.2,2266.0,15.67192803]
[1750548006868,4.09017,2266.2,2266.0,15.67192803]
[1750548007068,3.2078,2266.2,2265.3,4.6718]
[1750548007271,3.2078,2265.9,2265.3,4.6718]
[1750548007461,3.2078,2265.9,2265.8,15.67192803]
[1750548009065,3.2078,2266.2,2265.8,15.67192803]
[1750548009266,4.09018,2266.2,2265.9,15.67192803]
[1750548009467,3.2078,2266.2,2265.9,15.67192803]
[1750548009665,3.2078,2266.2,2265.6,3.2078]
[1750548009864,3.2078,2266.2,2265.9,15.67192803]
[1750548010369,3.2078,2266.2,2266.1,15.67192803]
[1750548010878,3.2078,2266.6,2266.1,20.67192803]
[1750548011063,11.535,2266.7,2266.6,15.67192803]
[1750548011368,50.79,2267.2,2266.6,18.87972803]
[1750548011573,50.79,2267.2,2267.0,15.67192803]
[1750548011778,50.79,2267.2,2267.1,15.67192803]
[1750548012376,3.2078,2267.3,2267.1,15.67192803]
[1750548012576,3.2078,2267.3,2267.2,15.67192803]
[1750548012974,3.2078,2267.6,2267.2,15.67192803]
[1750548013169,3.2078,2267.6,2267.5,15.67192803]
[1750548013873,54.0208,2267.8,2267.5,15.67192803]
[1750548014063,54.0208,2267.8,2267.7,15.67192803]
[1750548014375,3.2078,2267.8,2267.7,15.67192803]
[1750548014675,3.2078,2267.8,2267.3,1.4502]
[1750548014874,3.2078,2267.8,2267.7,15.67192803]
[1750548015073,3.2078,2268.1,2267.7,15.67192803]
[1750548015370,3.2078,2268.1,2267.9,15.67192803]
[1750548015575,3.2078,2268.1,2268.0,15.67192803]
[1750548015773,4.08928,2268.5,2268.0,15.67192803]
[1750548016071,3.2078,2268.8,2268.6,15.67192803]
[1750548016272,11.534,2268.9,2268.6,15.67192803]
[1750548016465,11.534,2268.9,2268.7,15.67192803]
[1750548016672,3.2078,2269.2,2268.8,15.67192803]
[1750548016972,3.2078,2269.2,2268.9,15.67192803]
[1750548017169,4.08898,2269.2,2268.9,17.02432803]
[1750548017373,3.2078,2269.2,2268.9,17.02432803]
[1750548017573,4.08901,2269.2,2268.9,17.02432803]
[1750548017962,3.2078,2269.2,2269.1,15.67192803]
[1750548018868,3.2078,2269.6,2269.1,23.87972803]
[1750548019073,3.2078,2269.6,2269.2,1.4328]
[1750548019376,3.2078,2269.6,2269.5,15.67192803]
[1750548020276,3.2078,2269.9,2269.5,15.67192803]
[1750548020477,3.2078,2269.9,2269.8,15.67192803]
[1750548020671,3.2078,2269.9,2269.7,15.67192803]
[1750548020873,0.88095,2269.8,2269.7,15.67192803]
[1750548021175,3.2078,2269.9,2269.8,15.67192803]
[1750548021380,3.2078,2269.9,2269.7,15.67192803]
[1750548021579,0.88095,2269.8,2269.7,15.67192803]
[1750548021879,4.08873,2269.9,2269.7,15.67192803]
[1750548022073,3.2078,2269.9,2269.4,3.2078]
[1750548022279,3.2078,2269.9,2269.8,15.67192803]
[1750548023080,3.2078,2270.2,2269.8,15.67192803]
[1750548023379,4.08859,2270.2,2270.1,15.67192803]
[1750548023578,3.2078,2270.2,2269.9,15.67192803]
[1750548023779,0.88083,2270.1,2270.0,15.67192803]
[1750548023979,4.08861,2270.2,2270.0,15.67192803]
[1750548024180,4.08861,2270.2,2269.5,1.4866]
[1750548024381,0.88083,2270.1,2270.0,15.67192803]
[1750548024680,3.2078,2270.2,2269.7,15.67192803]
[1750548024681,0.88095,2269.8,2269.7,15.67192803]
[1750548025675,0.88095,2269.8,2268.6,3.2078]
[1750548025676,5.0,2269.8,2268.6,3.2078]
[1750548025880,4.08894,2269.3,2269.2,15.67192803]
[1750548026179,3.2078,2269.8,2269.6,15.67192803]
[1750548026380,3.2078,2269.8,2269.3,1.4866]
[1750548026573,3.2078,2270.1,2269.7,15.67192803]
[1750548026776,3.2078,2270.1,2269.8,1.4554]
[1750548026977,4.08852,2270.4,2270.0,15.67192803]
[1750548027176,3.2078,2270.4,2270.2,15.67192803]
[1750548027375,54.0038,2270.7,2270.3,15.67192803]
[1750548027573,3.2078,2271.0,2270.6,15.67192803]
[1750548027777,0.88067,2270.6,2270.0,11.16]
[1750548027975,3.2078,2270.4,2270.0,11.16]
[1750548028181,3.2078,2270.8,2270.7,15.67192803]
[1750548028380,3.2078,2270.8,2270.2,3.2078]
[1750548028579,3.2078,2270.8,2270.7,15.67192803]
[1750548029986,0.0880708,2270.9,2270.7,15.67192803]
[1750548030186,0.0880708,2270.9,2270.8,15.67192803]
[1750548030387,0.0880708,2270.9,2270.8,17.05462803]
[1750548030989,3.2078,2271.2,2270.8,17.05462803]
[1750548031185,3.2078,2271.2,2271.1,15.67192803]
[1750548031987,3.2078,2271.5,2271.1,15.67192803]
[1750548032594,3.2078,2271.5,2271.4,15.67192803]
[1750548032886,3.2078,2272.3,2271.3,3.2078]
[1750548033082,3.2078,2272.3,2272.1,15.67192803]
[1750548033083,3.29581654,2272.3,2272.1,15.67192803]
[1750548033785,0.08801654,2272.3,2272.1,15.67192803]
[1750548033982,0.08801654,2272.3,2272.2,15.67192803]
[1750548034889,0.08801654,2272.3,2271.9,1.3653]
[1750548035086,0.08801654,2272.3,2272.2,15.67192803]
[1750548035892,0.08801654,2272.3,2272.2,18.87972803]
[1750548036093,0.08801654,2272.3,2272.2,15.67192803]
[1750548036393,0.08801654,2272.3,2271.9,1.3653]
[1750548036591,0.08801654,2272.3,2271.5,3.931]
[1750548036592,3.2078,2272.0,2271.5,3.931]
[1750548036784,3.2078,2272.0,2271.9,15.67192803]
[1750548036985,3.2078,2272.0,2271.8,15.67192803]
[1750548037180,8.2078,2272.0,2271.4,0.7073]
[1750548037387,3.2078,2271.7,2271.5,15.67192803]
[1750548037791,3.2078,2271.7,2271.2,1.4424]
[1750548037995,3.2078,2271.7,2271.4,15.67192803]
[1750548038492,3.2078,2271.7,2271.6,15.67192803]
[1750548038690,3.2078,2272.2,2271.6,18.87972803]
[1750548038886,3.2078,2272.2,2271.7,1.3602]
[1750548039089,3.2078,2272.2,2272.1,15.67192803]
[1750548039486,3.8977,2272.5,2272.1,15.67192803]
[1750548039687,3.2078,2272.5,2272.2,15.67192803]
[1750548040288,3.2078,2272.5,2272.3,15.67192803]
[1750548040486,3.2078,2272.5,2271.7,1.3602]
[1750548040686,3.2078,2272.0,2271.8,15.48006803]
[1750548040884,3.2078,2272.0,2271.3,3.2078]
[1750548041088,3.2078,2272.0,2271.9,15.48006803]
[1750548041288,3.2078,2272.4,2271.9,15.48006803]
[1750548041492,1.51884259,2272.3,2272.2,15.48006803]
[1750548041691,3.2078,2272.4,2272.3,15.48006803]
[1750548042890,3.2078,2272.9,2272.3,23.68786803]
[1750548043192,3.2078,2273.0,2272.8,15.48006803]
[1750548043500,1.52266411,2272.9,2272.5,10.793]
[1750548043686,3.2078,2273.0,2272.9,15.48006803]
[1750548043889,4.73051311,2273.0,2272.9,15.48006803]
[1750548044190,2.55104753,2273.6,2272.9,20.48006803]
[1750548044395,3.2078,2273.4,2273.2,15.48006803]
[1750548044590,1.52294092,2273.3,2273.0,15.48006803]
[1750548044788,4.73074092,2273.2,2272.5,4.606]
[1750548045098,1.52294092,2273.1,2273.0,15.48006803]
[1750548045291,1.52294092,2273.1,2272.5,1.3982]
[1750548045496,3.2078,2272.7,2272.6,15.48006803]
[1750548045694,1.52294092,2272.7,2272.5,1.3982]
[1750548045994,3.2078,2273.3,2272.6,26.27106803]
[1750548046195,5.75884753,2273.4,2273.3,15.48006803]
[1750548046495,1.52440224,2273.4,2273.3,15.48006803]
[1750548046693,1.52440224,2273.4,2272.9,3.2078]
[1750548046892,5.75884753,2273.7,2273.3,15.48006803]
[1750548047092,1.52508253,2273.6,2273.5,15.48006803]
[1750548047397,1.52508253,2273.6,2273.4,4.6707]
[1750548047597,2.55104753,2273.8,2273.5,15.48006803]
[1750548047797,1.52267155,2273.7,2273.5,15.48006803]
[1750548047995,4.73047155,2273.6,2272.6,53.9078]
[1750548048190,3.2078,2273.3,2273.1,15.48006803]
[1750548048390,1.52267155,2273.2,2273.1,15.48006803]
[1750548050491,2.55104753,2274.0,2273.1,20.48006803]
[1750548050698,5.75884753,2274.3,2273.9,15.48006803]
[1750548051004,3.2078,2274.7,2274.3,15.48006803]
[1750548051299,3.2078,2274.4,2273.6,10.789]
[1750548051495,3.2078,2274.4,2273.9,15.48006803]
[1750548051894,1.4252,2274.3,2273.9,15.48006803]
[1750548052298,1.4252,2274.3,2273.6,1.3966]
[1750548052299,3.2078,2274.4,2274.1,15.48006803]
[1750548052497,3.2078,2274.4,2274.2,15.48006803]
[1750548052797,3.2078,2274.4,2274.3,15.48006803]
[1750548053096,3.2078,2274.4,2274.1,15.48006803]
[1750548053599,10.786,2274.3,2273.5,3.2078]
[1750548053897,3.2078,2273.9,2273.0,3.2078]
[1750548054199,3.2078,2273.9,2273.5,15.48006803]
[1750548054791,3.2078,2273.9,2273.2,1.4282]
[1750548054992,1.3532,2273.8,2273.5,15.48006803]
[1750548055497,1.3532,2273.8,2273.2,1.4282]
[1750548055697,1.3532,2273.8,2273.5,15.48006803]
[1750548056193,3.2078,2273.9,2273.2,1.4282]
[1750548056391,1.3532,2274.1,2273.5,15.48006803]
[1750548056785,1.3532,2274.1,2273.4,3.2078]
[1750548056989,3.2078,2273.9,2273.5,15.48006803]
[1750548057186,3.2078,2273.6,2272.2,3.2078]
[1750548057397,3.2078,2273.6,2273.4,15.48006803]
[1750548057592,3.2078,2273.6,2273.5,15.48006803]
[1750548058099,3.2078,2273.6,2273.2,1.4407]
[1750548058100,12.46615272,2273.6,2272.1,3.2078]
[1750548058296,3.2078,2272.9,2272.6,15.48006803]
[1750548058503,3.2078,2272.9,2272.7,15.48006803]
[1750548058892,3.2078,2272.9,2272.1,3.2078]
[1750548058893,16.87193905,2272.9,2272.1,3.2078]
[1750548059196,4.25082426,2273.6,2272.4,4.384]
[1750548059396,0.11024414,2275.3,2273.5,11.87193905]
[1750548059600,8.66413905,2274.6,2273.6,4.6485]
[1750548059798,3.2078,2274.7,2273.9,3.2078]
[1750548059799,12.5168,2274.5,2273.9,3.2078]
[1750548059992,0.7051,2274.6,2274.3,3.2078]
[1750548060194,33.963,2274.6,2273.7,3.2078]
[1750548060398,8.66413905,2274.0,2273.0,3.2078]
[1750548060598,12.4936,2273.9,2273.0,3.2078]
[1750548060896,1.3436,2273.9,2273.4,3.2078]
[1750548062395,1.37048752,2273.8,2273.4,3.2078]
[1750548062600,1.37048752,2273.7,2273.4,3.2078]
[1750548062807,1.37048752,2273.6,2273.4,3.2078]
[1750548063105,51.55225,2274.2,2273.4,3.2078]
[1750548063106,1.37048752,2273.5,2273.4,3.2078]
[1750548063300,1.37048752,2273.5,2273.4,14.3558]
[1750548063499,5.49737,2274.7,2273.4,20.23534]
[1750548063500,45.075,2274.5,2273.4,20.23534]
[1750548063700,1.37117307,2274.4,2273.4,11.148]
[1750548063900,1.4076,2274.8,2274.3,3.2078]
[1750548064099,1.37133492,2274.7,2274.3,3.2078]
[1750548064297,1.37133492,2274.6,2274.3,3.2078]
[1750548064500,2.8181,2274.8,2274.5,3.2078]
[1750548064699,1.37101516,2274.7,2274.5,3.2078]
[1750548064997,1.37101516,2274.6,2274.5,3.2078]
[1750548070019,1.37101516,2274.6,2274.1,3.2078]
[1750548070219,1.37101516,2274.5,2274.1,3.2078]
[1750548070420,1.37101516,2274.4,2274.1,3.2078]
[1750548070626,1.37101516,2274.3,2274.1,3.2078]
[1750548070921,1.37101516,2274.2,2274.1,3.2078]
[1750548071123,2.55964747,2274.8,2274.1,3.2078]
[1750548071311,3.93065799,2274.7,2274.6,3.2078]
[1750548071513,1.37101052,2274.7,2274.6,3.2078]
[1750548072418,1.37101052,2274.7,2274.1,3.2078]
[1750548072618,2.83091052,2274.6,2274.1,3.2078]
[1750548072819,1.37101052,2274.5,2274.1,3.2078]
[1750548073017,1.37101052,2274.4,2274.1,3.2078]
[1750548073218,1.37101052,2274.3,2274.1,3.2078]
[1750548073414,1.37101052,2274.2,2274.1,3.2078]
[1750548077526,2.55964747,2275.4,2274.1,8.2078]
[1750548077717,3.2078,2275.0,2274.3,3.2078]
[1750548078121,10.05713905,2274.9,2274.3,3.2078]
[1750548078327,3.2078,2274.7,2274.3,3.2078]
[1750548078526,12.5133,2274.6,2274.3,3.2078]
[1750548078723,15.07294747,2274.6,2273.7,3.2078]
[1750548078922,15.07294747,2274.6,2273.4,3.2078]
[1750548078923,5.76744747,2274.4,2273.4,3.2078]
[1750548079128,3.92894747,2274.3,2273.4,3.2078]
[1750548079823,12.5133,2274.3,2273.8,3.2078]
[1750548080020,15.07294747,2274.3,2273.8,3.2078]
[1750548080222,12.5133,2274.3,2273.8,3.2078]
[1750548080421,2.55964747,2274.4,2274.1,3.2078]
[1750548080626,5.76744747,2274.7,2274.1,3.2078]
[1750548080825,2.55964747,2274.8,2274.6,3.2078]
[1750548081019,2.55964747,2274.9,2274.6,3.2078]
[1750548081223,13.70364747,2275.1,2274.6,3.2078]
[1750548081626,2.55964747,2275.1,2274.6,3.2078]
[1750548081829,13.70364747,2275.1,2274.6,3.2078]
[1750548082132,13.70364747,2275.1,2274.3,3.2078]
[1750548082318,1.4707,2274.9,2274.4,1.3969]
[1750548082629,11.144,2275.1,2274.6,3.2078]
[1750548083332,11.144,2275.1,2274.7,1.3969]
[1750548083525,50.649,2275.4,2275.0,3.2078]
[1750548083830,2.55964747,2275.6,2275.0,3.2078]
[1750548084031,11.144,2275.7,2275.3,3.2078]
[1750548084221,11.144,2275.7,2275.1,1.3969]
[1750548084425,11.144,2275.7,2275.4,3.2078]
[1750548084725,3.2078,2275.8,2275.4,3.2078]
[1750548085432,3.2078,2275.8,2275.5,1.4459]
[1750548085632,11.144,2276.0,2275.5,1.4459]
[1750548085927,11.144,2276.0,2275.4,3.2078]
[1750548086131,12.4883,2276.0,2275.4,3.2078]
[1750548086329,3.2078,2275.9,2275.4,3.2078]
[1750548086528,1.3443,2275.9,2275.4,3.2078]
[1750548086927,3.2078,2275.6,2275.1,3.2078]
[1750548087623,3.2078,2275.6,2275.2,1.4192]
[1750548088129,44.29,2275.9,2275.5,3.2078]
[1750548088321,44.29,2275.9,2275.2,1.4192]
[1750548088322,11.87193905,2275.8,2275.2,3.2078]
[1750548088522,13.26533905,2275.8,2274.8,3.2078]
[1750548088719,13.26533905,2275.8,2275.1,3.2078]
[1750548088924,3.2078,2275.5,2275.1,3.2078]
[1750548089129,1.3934,2275.4,2275.1,3.2078]
[1750548089431,11.87193905,2275.8,2275.1,3.2078]
[1750548089727,2.75911452,2275.7,2275.1,3.2078]
[1750548089925,1.36571452,2275.6,2275.1,3.2078]
[1750548090116,3.2078,2276.0,2275.5,3.2078]
[1750548090317,12.17308025,2275.9,2275.5,3.2078]
[1750548090622,1.36608025,2275.8,2275.2,3.2078]
[1750548090927,1.36608025,2275.7,2275.2,3.2078]
[1750548091124,1.36608025,2275.6,2275.3,1.4628]
[1750548091322,10.806,2275.8,2275.3,1.4628]
[1750548091524,1.36514244,2275.7,2275.3,1.4628]
[1750548091726,1.36514244,2275.6,2275.3,1.4628]
[1750548091926,10.806,2275.9,2275.3,1.4628]
[1750548092232,1.3657722,2275.8,2275.5,3.2078]
[1750548092433,10.806,2276.0,2275.6,1.4628]
[1750548092728,1.36522606,2275.9,2275.6,1.4628]
[1750548092927,10.806,2276.4,2275.7,3.2078]
[1750548093129,1.36562573,2276.3,2275.7,3.2078]
[1750548093329,1.36562573,2276.2,2275.7,3.2078]
[1750548093528,1.36562573,2276.1,2275.8,1.3657]
[1750548093733,10.806,2276.4,2275.8,1.3657]
[1750548093931,1.36575324,2276.3,2275.8,1.3657]
[1750548094132,1.36575324,2276.2,2276.0,3.2078]
[1750548094328,1.355,2276.7,2276.0,3.2078]
[1750548094534,1.365188,2276.6,2276.0,3.2078]
[1750548094732,1.365188,2276.5,2276.0,3.2078]
[1750548095130,1.355,2276.4,2276.0,3.2078]
[1750548095333,14.0128,2276.8,2276.1,1.3657]
[1750548095525,2.71947441,2276.7,2276.1,1.3657]
[1750548095727,1.36447441,2276.6,2276.1,1.3657]
[1750548095923,1.36447441,2276.5,2276.0,3.2078]
[1750548096127,4.57227441,2276.5,2276.0,3.2078]
[1750548096435,2.71947441,2276.4,2276.0,3.2078]
[1750548096736,3.2078,2276.2,2275.3,3.2078]
[1750548097040,2.84977441,2276.1,2275.3,3.2078]
[1750548097228,1.36447441,2276.0,2275.3,3.2078]
[1750548097532,3.9079,2276.2,2275.3,3.2078]
[1750548097533,6.05520482,2275.9,2275.3,3.2078]
[1750548097731,12.16610482,2275.8,2275.3,3.2078]
[1750548097932,12.2893,2275.8,2275.3,3.2078]
[1750548098134,15.4971,2275.8,2275.3,3.2078]
[1750548098325,1.36195192,2275.7,2275.0,3.2078]
[1750548098525,3.2078,2275.5,2274.9,1.3806]
[1750548098735,3.2078,2275.5,2274.9,4.5884]
[1750548099236,10.804,2275.4,2275.2,3.2078]
[1750548099428,10.804,2275.4,2274.9,3.2078]
[1750548099936,1.36236571,2275.3,2274.6,3.2078]
[1750548100136,4.6847,2275.2,2274.6,3.2078]
[1750548100736,10.804,2275.1,2274.6,3.2078]
[1750548100931,1.4769,2275.0,2274.6,3.2078]
[1750548101835,12.2809,2275.0,2274.6,3.2078]
[1750548103737,12.2809,2275.0,2274.1,1.4603]
[1750548103738,12.2809,2275.0,2274.3,3.2078]
[1750548104236,12.2809,2275.0,2274.4,1.4746]
[1750548104629,12.2809,2275.0,2274.3,3.2078]
[1750548104630,3.2078,2274.9,2274.3,3.2078]
[1750548104828,1.3688,2274.8,2274.3,3.2078]
[1750548106530,8.66413905,2274.4,2273.4,3.2078]
[1750548106731,8.66413905,2274.4,2273.0,4.6789]
[1750548106732,3.2078,2273.7,2273.0,4.6789]
[1750548107132,10.806,2273.8,2273.1,3.2078]
[1750548107430,10.806,2273.8,2273.2,1.4711]
[1750548107637,3.2078,2273.7,2273.2,1.4711]
[1750548108038,4.6487,2273.7,2273.2,1.4711]